[Event "Early-Titled-Tuesday-Blitz-December-26-2023"]
[Site "Chess.com"]
[Date "2023.12.26"]
[Round "2"]
[White "Lady_Nika"]
[Black "NowInChess"]
[Result "1/2-1/2"]
[WhiteElo "2603"]
[BlackElo "2293"]
[TimeControl "180+1"]
[EndTime "8:19:18 PST"]
[Termination "Game drawn by stalemate"]

1. e4 {[%clk 0:02:36]} 1... e6 {[%clk 0:02:59.9]} 2. d4 {[%clk 0:02:35.5]} 2...
d5 {[%clk 0:03:00.3]} 3. exd5 {[%clk 0:02:36]} 3... exd5 {[%clk 0:02:59.9]} 4.
Nf3 {[%clk 0:02:36.7]} 4... Nc6 {[%clk 0:02:59.8]} 5. c3 {[%clk 0:02:36.4]} 5...
Bd6 {[%clk 0:02:59.2]} 6. Bd3 {[%clk 0:02:36.4]} 6... Bg4 {[%clk 0:02:59.1]} 7.
O-O {[%clk 0:02:36.5]} 7... Nge7 {[%clk 0:02:59.2]} 8. Nbd2 {[%clk 0:02:36.6]}
8... Qd7 {[%clk 0:02:58.4]} 9. Qc2 {[%clk 0:02:33.6]} 9... Bf5 {[%clk
0:02:40.9]} 10. Re1 {[%clk 0:02:32.1]} 10... O-O {[%clk 0:02:40.3]} 11. Nf1
{[%clk 0:02:29.5]} 11... Rfe8 {[%clk 0:02:24.6]} 12. Ne3 {[%clk 0:02:23.2]}
12... Bg6 {[%clk 0:02:15]} 13. Bd2 {[%clk 0:02:19.3]} 13... Bf4 {[%clk
0:02:09.8]} 14. h3 {[%clk 0:02:12.1]} 14... f6 {[%clk 0:02:00.5]} 15. Bxg6
{[%clk 0:01:07.8]} 15... hxg6 {[%clk 0:01:52.8]} 16. c4 {[%clk 0:01:00.7]} 16...
Bxe3 {[%clk 0:01:43.3]} 17. Rxe3 {[%clk 0:00:56.6]} 17... dxc4 {[%clk 0:01:37]}
18. Qxc4+ {[%clk 0:00:55.2]} 18... Qd5 {[%clk 0:01:28.2]} 19. Qd3 {[%clk
0:00:48.3]} 19... Nf5 {[%clk 0:01:23.5]} 20. Rae1 {[%clk 0:00:37.9]} 20... Nxe3
{[%clk 0:01:09.4]} 21. Qxg6 {[%clk 0:00:34.9]} 21... Qf7 {[%clk 0:01:00.7]} 22.
Qxf7+ {[%clk 0:00:32.7]} 22... Kxf7 {[%clk 0:01:01.6]} 23. fxe3 {[%clk
0:00:31.7]} 23... Rad8 {[%clk 0:00:47.7]} 24. Bc3 {[%clk 0:00:31.6]} 24... a5
{[%clk 0:00:39.6]} 25. a4 {[%clk 0:00:30]} 25... Nb4 {[%clk 0:00:38.8]} 26. e4
{[%clk 0:00:26.9]} 26... Nd3 {[%clk 0:00:35.6]} 27. Re3 {[%clk 0:00:25.2]} 27...
Nf4 {[%clk 0:00:33.6]} 28. Kf2 {[%clk 0:00:25.1]} 28... c6 {[%clk 0:00:25.3]}
29. Nh4 {[%clk 0:00:21]} 29... g6 {[%clk 0:00:20.4]} 30. Rf3 {[%clk 0:00:19.3]}
30... Ne6 {[%clk 0:00:17.3]} 31. d5 {[%clk 0:00:19.6]} 31... cxd5 {[%clk
0:00:13.1]} 32. Rxf6+ {[%clk 0:00:19.8]} 32... Ke7 {[%clk 0:00:12.8]} 33. Nxg6+
{[%clk 0:00:20]} 33... Kd7 {[%clk 0:00:11.5]} 34. exd5 {[%clk 0:00:19.9]} 34...
Nc5 {[%clk 0:00:10.9]} 35. Rf7+ {[%clk 0:00:19.9]} 35... Kc8 {[%clk 0:00:09.6]}
36. Rf5 {[%clk 0:00:09.4]} 36... Nxa4 {[%clk 0:00:09.7]} 37. Bxa5 {[%clk
0:00:08.8]} 37... Rd7 {[%clk 0:00:08.3]} 38. Bb4 {[%clk 0:00:08.8]} 38... Nxb2
{[%clk 0:00:07.7]} 39. Kg1 {[%clk 0:00:07.4]} 39... Nd3 {[%clk 0:00:07.3]} 40.
Bc3 {[%clk 0:00:06]} 40... Red8 {[%clk 0:00:06.5]} 41. h4 {[%clk 0:00:03.5]}
41... Kb8 {[%clk 0:00:06.2]} 42. h5 {[%clk 0:00:03.9]} 42... Rxd5 {[%clk
0:00:06.3]} 43. Rxd5 {[%clk 0:00:04.3]} 43... Rxd5 {[%clk 0:00:07.2]} 44. h6
{[%clk 0:00:05.2]} 44... Rh5 {[%clk 0:00:07.1]} 45. g4 {[%clk 0:00:05.1]} 45...
Rxh6 {[%clk 0:00:06.7]} 46. Ne7 {[%clk 0:00:05.2]} 46... Re6 {[%clk 0:00:06.2]}
47. Nd5 {[%clk 0:00:05.1]} 47... Nc5 {[%clk 0:00:05.6]} 48. Kg2 {[%clk 0:00:05]}
48... Rg6 {[%clk 0:00:06.1]} 49. Kh3 {[%clk 0:00:05.1]} 49... Ne4 {[%clk
0:00:06.5]} 50. Be5+ {[%clk 0:00:05.5]} 50... Kc8 {[%clk 0:00:06.1]} 51. Ne7+
{[%clk 0:00:05.7]} 51... Kd7 {[%clk 0:00:06.8]} 52. Nxg6 {[%clk 0:00:06.6]}
52... Ke6 {[%clk 0:00:07.3]} 53. Bh2 {[%clk 0:00:06.6]} 53... Nf2+ {[%clk
0:00:07.6]} 54. Kg2 {[%clk 0:00:06.7]} 54... Nxg4 {[%clk 0:00:08.5]} 55. Kf3
{[%clk 0:00:06.7]} 55... Ne5+ {[%clk 0:00:08.6]} 56. Nxe5 {[%clk 0:00:06.4]}
56... b5 {[%clk 0:00:09]} 57. Nd3 {[%clk 0:00:06.9]} 57... Kd5 {[%clk
0:00:09.6]} 58. Ke2 {[%clk 0:00:07.2]} 58... Kc4 {[%clk 0:00:10.5]} 59. Kd2
{[%clk 0:00:07.7]} 59... b4 {[%clk 0:00:11.2]} 60. Be5 {[%clk 0:00:08.2]} 60...
b3 {[%clk 0:00:11.7]} 61. Bf6 {[%clk 0:00:08.6]} 61... Kd5 {[%clk 0:00:10.9]}
62. Bb2 {[%clk 0:00:09.5]} 62... Kc4 {[%clk 0:00:10.9]} 63. Ne5+ {[%clk
0:00:09.7]} 63... Kb4 {[%clk 0:00:11]} 64. Kd3 {[%clk 0:00:09.8]} 64... Ka4
{[%clk 0:00:10.8]} 65. Kc3 {[%clk 0:00:10.3]} 65... Kb5 {[%clk 0:00:11.1]} 66.
Kxb3 {[%clk 0:00:11.2]} 66... Kc5 {[%clk 0:00:11.8]} 67. Nc4 {[%clk 0:00:12.1]}
67... Kd5 {[%clk 0:00:12.7]} 68. Bc3 {[%clk 0:00:12.4]} 68... Ke4 {[%clk
0:00:13.6]} 69. Kc2 {[%clk 0:00:12.5]} 69... Kf3 {[%clk 0:00:14.5]} 70. Kd3
{[%clk 0:00:12.8]} 70... Kf4 {[%clk 0:00:14.6]} 71. Bd2+ {[%clk 0:00:12.3]}
71... Kf5 {[%clk 0:00:15.5]} 72. Ke3 {[%clk 0:00:12.1]} 72... Ke6 {[%clk
0:00:16.4]} 73. Kd4 {[%clk 0:00:12.5]} 73... Kd7 {[%clk 0:00:16.1]} 74. Kd5
{[%clk 0:00:12.8]} 74... Kc7 {[%clk 0:00:15.7]} 75. Kc5 {[%clk 0:00:13.2]} 75...
Kd7 {[%clk 0:00:15.8]} 76. Nb6+ {[%clk 0:00:13.2]} 76... Ke6 {[%clk 0:00:15.7]}
77. Kc6 {[%clk 0:00:13.2]} 77... Ke5 {[%clk 0:00:16.6]} 78. Bc3+ {[%clk
0:00:13.4]} 78... Ke4 {[%clk 0:00:16.7]} 79. Kc5 {[%clk 0:00:13.3]} 79... Kd3
{[%clk 0:00:17.2]} 80. Be5 {[%clk 0:00:13.5]} 80... Ke4 {[%clk 0:00:17.3]} 81.
Kd6 {[%clk 0:00:13.3]} 81... Kf5 {[%clk 0:00:17.4]} 82. Nd5 {[%clk 0:00:13.4]}
82... Ke4 {[%clk 0:00:18.1]} 83. Nc3+ {[%clk 0:00:12.7]} 83... Kd3 {[%clk
0:00:18.7]} 84. Kd5 {[%clk 0:00:13.1]} 84... Ke3 {[%clk 0:00:17.9]} 85. Bd4+
{[%clk 0:00:12.8]} 85... Kd3 {[%clk 0:00:17.5]} 86. Ne4 {[%clk 0:00:12.9]} 86...
Ke2 {[%clk 0:00:16.8]} 87. Ng3+ {[%clk 0:00:13.2]} 87... Kf3 {[%clk 0:00:17.7]}
88. Nf5 {[%clk 0:00:13.5]} 88... Kf4 {[%clk 0:00:17.8]} 89. Ne7 {[%clk 0:00:13]}
89... Kf3 {[%clk 0:00:18]} 90. Nc6 {[%clk 0:00:12.6]} 90... Kf4 {[%clk
0:00:18.4]} 91. Be5+ {[%clk 0:00:12.7]} 91... Kf3 {[%clk 0:00:19.2]} 92. Nd4+
{[%clk 0:00:13]} 92... Ke3 {[%clk 0:00:19.3]} 93. Nf5+ {[%clk 0:00:13.4]} 93...
Kf3 {[%clk 0:00:19.3]} 94. Kd4 {[%clk 0:00:13.6]} 94... Kg4 {[%clk 0:00:19.1]}
95. Ke4 {[%clk 0:00:13.8]} 95... Kh3 {[%clk 0:00:18.7]} 96. Kf3 {[%clk
0:00:13.5]} 1/2-1/2

[Event "Early-Titled-Tuesday-Blitz-December-26-2023"]
[Site "Chess.com"]
[Date "2023.12.26"]
[Round "2"]
[White "Statham_l3"]
[Black "Virgo15"]
[Result "1/2-1/2"]
[WhiteElo "2559"]
[BlackElo "2760"]
[TimeControl "180+1"]
[EndTime "8:20:02 PST"]
[Termination "Game drawn by stalemate"]

1. e4 {[%clk 0:03:00.9]} 1... c5 {[%clk 0:03:00.3]} 2. Nf3 {[%clk 0:03:00.5]}
2... d6 {[%clk 0:03:00.7]} 3. d4 {[%clk 0:03:00.5]} 3... cxd4 {[%clk 0:03:01.4]}
4. Nxd4 {[%clk 0:03:01.4]} 4... Nf6 {[%clk 0:03:02]} 5. Nc3 {[%clk 0:03:02.1]}
5... g6 {[%clk 0:03:01.5]} 6. Be3 {[%clk 0:03:01.3]} 6... Bg7 {[%clk 0:03:02.1]}
7. f3 {[%clk 0:03:00.9]} 7... O-O {[%clk 0:03:02.5]} 8. Qd2 {[%clk 0:03:01.5]}
8... Nc6 {[%clk 0:03:02.1]} 9. O-O-O {[%clk 0:03:01.5]} 9... d5 {[%clk
0:02:59.2]} 10. exd5 {[%clk 0:02:59.4]} 10... Nxd5 {[%clk 0:02:59.3]} 11. Nxc6
{[%clk 0:03:00.2]} 11... bxc6 {[%clk 0:03:00.2]} 12. Bd4 {[%clk 0:03:00.9]}
12... e5 {[%clk 0:02:59.4]} 13. Bc5 {[%clk 0:03:00.9]} 13... Be6 {[%clk
0:03:00.1]} 14. Ne4 {[%clk 0:03:00.9]} 14... Re8 {[%clk 0:02:59.9]} 15. h4
{[%clk 0:02:53.1]} 15... h5 {[%clk 0:02:58.5]} 16. g4 {[%clk 0:02:45.9]} 16...
hxg4 {[%clk 0:02:56.1]} 17. h5 {[%clk 0:02:46.4]} 17... Nf4 {[%clk 0:02:46.4]}
18. Qh2 {[%clk 0:02:26.5]} 18... Qxd1+ {[%clk 0:02:04]} 19. Kxd1 {[%clk
0:02:27.4]} 19... Rad8+ {[%clk 0:02:04]} 20. Bd3 {[%clk 0:02:08.8]} 20... Nxh5
{[%clk 0:01:45.9]} 21. fxg4 {[%clk 0:01:37.6]} 21... Bxg4+ {[%clk 0:01:46]} 22.
Kc1 {[%clk 0:01:38.2]} 22... f5 {[%clk 0:01:43.5]} 23. Bc4+ {[%clk 0:01:28.8]}
23... Kh8 {[%clk 0:01:43.5]} 24. Nd6 {[%clk 0:01:15.3]} 24... Re7 {[%clk
0:01:34.1]} 25. Nf7+ {[%clk 0:00:40.7]} 25... Rxf7 {[%clk 0:01:34.5]} 26. Bxf7
{[%clk 0:00:41.6]} 26... Kh7 {[%clk 0:01:35.3]} 27. b3 {[%clk 0:00:23.7]} 27...
Bh6+ {[%clk 0:01:24.1]} 28. Kb1 {[%clk 0:00:20.7]} 28... Bf4 {[%clk 0:01:18.9]}
29. Qg2 {[%clk 0:00:19.4]} 29... Kg7 {[%clk 0:01:16.6]} 30. Qxc6 {[%clk
0:00:17]} 30... Kxf7 {[%clk 0:00:25]} 31. Qc7+ {[%clk 0:00:15.7]} 31... Ke6
{[%clk 0:00:19.3]} 32. Qxd8 {[%clk 0:00:12.8]} 32... e4 {[%clk 0:00:16.6]} 33.
Qe8+ {[%clk 0:00:10]} 33... Kd5 {[%clk 0:00:16.1]} 34. Qxg6 {[%clk 0:00:07.2]}
34... Ng3 {[%clk 0:00:13.4]} 35. Rh7 {[%clk 0:00:04.7]} 35... Kxc5 {[%clk
0:00:13.4]} 36. Rd7 {[%clk 0:00:05]} 36... Ne2 {[%clk 0:00:11.5]} 37. b4+ {[%clk
0:00:05.2]} 37... Kxb4 {[%clk 0:00:10.7]} 38. a3+ {[%clk 0:00:05.3]} 38... Kc5
{[%clk 0:00:09.1]} 39. Qe8 {[%clk 0:00:05.6]} 39... Nc3+ {[%clk 0:00:09]} 40.
Ka1 {[%clk 0:00:06.2]} 40... Nd5 {[%clk 0:00:06.5]} 41. Qc8+ {[%clk 0:00:06.2]}
41... Kd4 {[%clk 0:00:07.1]} 42. Qc6 {[%clk 0:00:04.4]} 42... Ke3 {[%clk
0:00:07.4]} 43. Qxd5 {[%clk 0:00:04.1]} 43... Kf2 {[%clk 0:00:07.2]} 44. Qc5+
{[%clk 0:00:03.9]} 44... Be3 {[%clk 0:00:07.1]} 45. Qc3 {[%clk 0:00:03.2]} 45...
Be2 {[%clk 0:00:06.6]} 46. Ka2 {[%clk 0:00:03.2]} 46... f4 {[%clk 0:00:07]} 47.
Rg7 {[%clk 0:00:03.8]} 47... f3 {[%clk 0:00:07.2]} 48. Qf6 {[%clk 0:00:04.1]}
48... Bc4+ {[%clk 0:00:07.4]} 49. Kb2 {[%clk 0:00:04.2]} 49... Ke2 {[%clk
0:00:07.8]} 50. c3 {[%clk 0:00:03.3]} 50... Bd3 {[%clk 0:00:07.9]} 51. Qe5
{[%clk 0:00:03.5]} 51... f2 {[%clk 0:00:08.3]} 52. Qh5+ {[%clk 0:00:04.2]} 52...
Kd2 {[%clk 0:00:08.2]} 53. Rg2 {[%clk 0:00:03.4]} 53... Bf1 {[%clk 0:00:07]} 54.
Rh2 {[%clk 0:00:03.4]} 54... Be2 {[%clk 0:00:06.4]} 55. Qh4 {[%clk 0:00:03.5]}
55... f1=Q {[%clk 0:00:05.9]} 56. Rh1 {[%clk 0:00:01.9]} 56... Qf5 {[%clk
0:00:04.4]} 57. Qe1+ {[%clk 0:00:02.2]} 57... Kd3 {[%clk 0:00:04.5]} 58. Qb1+
{[%clk 0:00:02.9]} 58... Kc4 {[%clk 0:00:04.5]} 59. Qa2+ {[%clk 0:00:03.6]}
59... Kc5 {[%clk 0:00:04.4]} 60. Qb3 {[%clk 0:00:04.3]} 60... Qd5 {[%clk
0:00:04.7]} 61. Qb4+ {[%clk 0:00:04.5]} 61... Kc6 {[%clk 0:00:04.7]} 62. Rh7
{[%clk 0:00:04.8]} 62... Bb6 {[%clk 0:00:03]} 63. Rh6+ {[%clk 0:00:04.6]} 63...
Kb7 {[%clk 0:00:02.9]} 64. Rh7+ {[%clk 0:00:05.2]} 64... Kc6 {[%clk 0:00:02.6]}
65. Rh6+ {[%clk 0:00:03.4]} 65... Kb7 {[%clk 0:00:03.1]} 66. Rh7+ {[%clk
0:00:03.3]} 66... Ka6 {[%clk 0:00:03.7]} 67. Qa4+ {[%clk 0:00:03.1]} 67... Qa5
{[%clk 0:00:04.3]} 68. Qb3 {[%clk 0:00:02.6]} 68... Qb5 {[%clk 0:00:04]} 69. a4
{[%clk 0:00:02.6]} 69... Qxb3+ {[%clk 0:00:04]} 70. Kxb3 {[%clk 0:00:03.5]}
70... e3 {[%clk 0:00:04.3]} 71. Re7 {[%clk 0:00:04.1]} 71... Bd1+ {[%clk
0:00:04.4]} 72. Kb2 {[%clk 0:00:04.4]} 72... e2 {[%clk 0:00:04.7]} 73. Re6
{[%clk 0:00:05]} 73... Kb7 {[%clk 0:00:04.4]} 74. Re7+ {[%clk 0:00:03.8]} 74...
Kc6 {[%clk 0:00:04.9]} 75. Kc1 {[%clk 0:00:03.9]} 75... Kd6 {[%clk 0:00:05]} 76.
Re8 {[%clk 0:00:03.8]} 76... Kd7 {[%clk 0:00:04.9]} 77. Re4 {[%clk 0:00:03.6]}
77... Bf2 {[%clk 0:00:05.5]} 78. Kd2 {[%clk 0:00:02.5]} 78... e1=Q+ {[%clk
0:00:05.4]} 79. Rxe1 {[%clk 0:00:03.4]} 79... Bxe1+ {[%clk 0:00:06]} 80. Kxe1
{[%clk 0:00:04.1]} 80... Bxa4 {[%clk 0:00:06.9]} 81. c4 {[%clk 0:00:04.4]} 81...
Kc6 {[%clk 0:00:07.4]} 82. Kd2 {[%clk 0:00:05.3]} 82... Kc5 {[%clk 0:00:08]} 83.
Kc3 {[%clk 0:00:06.2]} 83... Bd1 {[%clk 0:00:07.2]} 84. Kb2 {[%clk 0:00:07.1]}
84... a5 {[%clk 0:00:07.5]} 85. Ka1 {[%clk 0:00:08]} 85... a4 {[%clk 0:00:06.7]}
86. Kb1 {[%clk 0:00:08.9]} 86... Bb3 {[%clk 0:00:06.7]} 87. Ka1 {[%clk
0:00:09.8]} 87... a3 {[%clk 0:00:05.3]} 88. Kb1 {[%clk 0:00:10.2]} 88... Ba4
{[%clk 0:00:05.5]} 89. Ka2 {[%clk 0:00:10.7]} 89... Kb4 {[%clk 0:00:06.2]} 90.
c5 {[%clk 0:00:11.6]} 90... Bc6 {[%clk 0:00:06.4]} 91. Ka1 {[%clk 0:00:11.7]}
91... Kb3 {[%clk 0:00:06.9]} 92. Kb1 {[%clk 0:00:12.2]} 92... Be4+ {[%clk
0:00:05.9]} 93. Ka1 {[%clk 0:00:12.8]} 93... Bc6 {[%clk 0:00:06.3]} 94. Kb1
{[%clk 0:00:12.9]} 94... Bd7 {[%clk 0:00:06.7]} 95. c6 {[%clk 0:00:12.7]} 95...
a2+ {[%clk 0:00:06.2]} 96. Ka1 {[%clk 0:00:13.2]} 96... Bc8 {[%clk 0:00:06.7]}
97. c7 {[%clk 0:00:13.6]} 97... Ka3 {[%clk 0:00:05]} 1/2-1/2

[Event "Early-Titled-Tuesday-Blitz-December-26-2023"]
[Site "Chess.com"]
[Date "2023.12.26"]
[Round "3"]
[White "NowInChess"]
[Black "Kostya0705"]
[Result "1-0"]
[WhiteElo "2306"]
[BlackElo "2570"]
[TimeControl "180+1"]
[EndTime "8:23:57 PST"]
[Termination "NowInChess won by resignation"]

1. e4 {[%clk 0:03:00.9]} 1... c5 {[%clk 0:02:59.1]} 2. d3 {[%clk 0:03:00.7]}
2... e6 {[%clk 0:02:59.8]} 3. g3 {[%clk 0:03:01.3]} 3... Nc6 {[%clk 0:02:59.8]}
4. Bg2 {[%clk 0:03:01.4]} 4... g6 {[%clk 0:02:58.7]} 5. f4 {[%clk 0:03:01.5]}
5... Bg7 {[%clk 0:02:55.7]} 6. Nf3 {[%clk 0:03:01.9]} 6... Nge7 {[%clk
0:02:54.8]} 7. O-O {[%clk 0:03:01.7]} 7... d6 {[%clk 0:02:53.6]} 8. c3 {[%clk
0:03:01.9]} 8... O-O {[%clk 0:02:49.5]} 9. Be3 {[%clk 0:03:02.2]} 9... b6 {[%clk
0:02:48.8]} 10. d4 {[%clk 0:03:02.3]} 10... cxd4 {[%clk 0:02:49.2]} 11. cxd4
{[%clk 0:03:03.2]} 11... d5 {[%clk 0:02:49.7]} 12. e5 {[%clk 0:03:02.6]} 12...
Ba6 {[%clk 0:02:48.1]} 13. Re1 {[%clk 0:03:02.1]} 13... Nb4 {[%clk 0:02:47.3]}
14. Qa4 {[%clk 0:03:00.7]} 14... Qc8 {[%clk 0:02:44.5]} 15. Qxb4 {[%clk
0:02:53.6]} 15... Nc6 {[%clk 0:02:41.3]} 16. Qd2 {[%clk 0:02:53]} 16... Rd8
{[%clk 0:02:40.8]} 17. Nc3 {[%clk 0:02:51.1]} 17... Bf8 {[%clk 0:02:41.5]} 18.
Rac1 {[%clk 0:02:44.4]} 18... b5 {[%clk 0:02:41.8]} 19. g4 {[%clk 0:02:41.5]}
19... b4 {[%clk 0:02:39.4]} 20. Na4 {[%clk 0:02:36.7]} 20... Bb5 {[%clk
0:02:36.5]} 21. Nc5 {[%clk 0:02:36]} 21... Rb8 {[%clk 0:02:31.9]} 22. Bh3 {[%clk
0:02:17.1]} 22... Bxc5 {[%clk 0:02:25.8]} 23. Rxc5 {[%clk 0:02:14.7]} 23... Qa6
{[%clk 0:02:25.9]} 24. Rec1 {[%clk 0:01:57.5]} 24... Rb6 {[%clk 0:02:17.8]} 25.
b3 {[%clk 0:01:42.5]} 25... Qb7 {[%clk 0:02:14.9]} 26. f5 {[%clk 0:01:39]} 26...
exf5 {[%clk 0:02:13.5]} 27. gxf5 {[%clk 0:01:38.4]} 27... a5 {[%clk 0:02:14.4]}
28. f6 {[%clk 0:01:36.1]} 28... a4 {[%clk 0:02:11.6]} 29. Bf2 {[%clk 0:01:32.8]}
29... Kh8 {[%clk 0:02:11.2]} 30. Qh6 {[%clk 0:01:28.6]} 1-0

[Event "Early-Titled-Tuesday-Blitz-December-26-2023"]
[Site "Chess.com"]
[Date "2023.12.26"]
[Round "3"]
[White "krucki03"]
[Black "Ali_rastbod"]
[Result "0-1"]
[WhiteElo "2508"]
[BlackElo "2724"]
[TimeControl "180+1"]
[EndTime "8:24:08 PST"]
[Termination "Ali_rastbod won by resignation"]

1. Nf3 {[%clk 0:02:57.5]} 1... c5 {[%clk 0:02:59.8]} 2. e3 {[%clk 0:02:52.6]}
2... Nc6 {[%clk 0:02:59.4]} 3. b3 {[%clk 0:02:52.3]} 3... e5 {[%clk 0:02:59.2]}
4. Bb5 {[%clk 0:02:51]} 4... e4 {[%clk 0:02:59]} 5. Ng1 {[%clk 0:02:49.9]} 5...
Qg5 {[%clk 0:02:57.7]} 6. g3 {[%clk 0:02:47.2]} 6... h5 {[%clk 0:02:54]} 7. h4
{[%clk 0:02:47.3]} 7... Qf5 {[%clk 0:02:44.8]} 8. Bb2 {[%clk 0:02:45.1]} 8...
Nf6 {[%clk 0:02:40.8]} 9. Nc3 {[%clk 0:02:42.4]} 9... a6 {[%clk 0:02:37.5]} 10.
Bxc6 {[%clk 0:02:40.1]} 10... dxc6 {[%clk 0:02:38.4]} 11. Qe2 {[%clk 0:02:40.8]}
11... b5 {[%clk 0:02:35.8]} 12. O-O-O {[%clk 0:02:40.8]} 12... Bd6 {[%clk
0:02:30.9]} 13. d3 {[%clk 0:02:40.6]} 13... Be5 {[%clk 0:02:14.3]} 14. dxe4
{[%clk 0:02:38]} 14... Nxe4 {[%clk 0:02:15.2]} 15. Nxe4 {[%clk 0:02:36.9]} 15...
Bxb2+ {[%clk 0:02:11.2]} 16. Kxb2 {[%clk 0:02:37.8]} 16... Qxe4 {[%clk 0:02:12]}
17. Qf3 {[%clk 0:02:29.8]} 17... Qe5+ {[%clk 0:02:11.9]} 18. Kb1 {[%clk
0:02:26.8]} 18... O-O {[%clk 0:02:11.8]} 19. Ne2 {[%clk 0:02:20.6]} 19... Bg4
{[%clk 0:02:11]} 20. Qf4 {[%clk 0:02:16.4]} 20... Qxf4 {[%clk 0:02:08.2]} 21.
Nxf4 {[%clk 0:02:14.8]} 21... Bxd1 {[%clk 0:02:09.1]} 22. Rxd1 {[%clk
0:02:15.1]} 22... Rad8 {[%clk 0:02:07.8]} 23. Rd3 {[%clk 0:02:12]} 23... g6
{[%clk 0:01:54.7]} 24. Kb2 {[%clk 0:02:07.5]} 24... Rfe8 {[%clk 0:01:44.4]} 25.
Kc3 {[%clk 0:02:06.3]} 25... Kg7 {[%clk 0:01:39.7]} 26. a3 {[%clk 0:02:05.2]}
26... Kf6 {[%clk 0:01:38.9]} 27. b4 {[%clk 0:02:02.7]} 27... c4 {[%clk
0:01:34.8]} 28. Rd4 {[%clk 0:02:01.1]} 28... Rxd4 {[%clk 0:01:34.6]} 29. Kxd4
{[%clk 0:02:02]} 29... Rd8+ {[%clk 0:01:35.1]} 30. Kc5 {[%clk 0:02:02.4]} 30...
Rd2 {[%clk 0:01:35.3]} 31. Kxc6 {[%clk 0:02:01.1]} 31... Rxc2 {[%clk 0:01:34.2]}
0-1

[Event "Early-Titled-Tuesday-Blitz-December-26-2023"]
[Site "Chess.com"]
[Date "2023.12.26"]
[Round "3"]
[White "TitarovVasiliYouTube"]
[Black "TedBelanoff"]
[Result "1-0"]
[WhiteElo "2539"]
[BlackElo "2263"]
[TimeControl "180+1"]
[EndTime "8:24:10 PST"]
[Termination "TitarovVasiliYouTube won by checkmate"]

1. e4 {[%clk 0:03:00.9]} 1... d5 {[%clk 0:02:59.8]} 2. exd5 {[%clk 0:03:01.8]}
2... Qxd5 {[%clk 0:03:00.3]} 3. Nc3 {[%clk 0:03:01.9]} 3... Qd6 {[%clk
0:03:00.5]} 4. d4 {[%clk 0:03:02]} 4... c6 {[%clk 0:03:00.9]} 5. Nf3 {[%clk
0:03:01]} 5... Bg4 {[%clk 0:02:59.7]} 6. h3 {[%clk 0:03:01]} 6... Bxf3 {[%clk
0:02:59.7]} 7. Qxf3 {[%clk 0:03:01.9]} 7... Qxd4 {[%clk 0:02:59.6]} 8. Be3
{[%clk 0:03:00.2]} 8... Qb4 {[%clk 0:02:58.8]} 9. O-O-O {[%clk 0:02:57.9]} 9...
Nf6 {[%clk 0:02:55.4]} 10. a3 {[%clk 0:02:49.5]} 10... Qa5 {[%clk 0:02:55.2]}
11. g4 {[%clk 0:02:49.1]} 11... Nbd7 {[%clk 0:02:46.5]} 12. g5 {[%clk 0:02:30]}
12... Ng8 {[%clk 0:02:46.5]} 13. Bc4 {[%clk 0:01:28.8]} 13... e6 {[%clk
0:02:46.3]} 14. Rxd7 {[%clk 0:01:22.4]} 14... Kxd7 {[%clk 0:02:40.1]} 15. Qxf7+
{[%clk 0:01:22.2]} 15... Ne7 {[%clk 0:02:40.2]} 16. Bxe6+ {[%clk 0:00:45.4]}
16... Kc7 {[%clk 0:02:40.4]} 17. Bf4+ {[%clk 0:00:45.2]} 17... Kb6 {[%clk
0:02:40.4]} 18. Be3+ {[%clk 0:00:33.8]} 18... Kc7 {[%clk 0:02:40.6]} 19. Qf4+
{[%clk 0:00:29.1]} 19... Kd8 {[%clk 0:02:38]} 20. Rd1+ {[%clk 0:00:28.6]} 20...
Ke8 {[%clk 0:02:36.1]} 21. Qf7# {[%clk 0:00:28.1]} 1-0

[Event "Early-Titled-Tuesday-Blitz-December-26-2023"]
[Site "Chess.com"]
[Date "2023.12.26"]
[Round "3"]
[White "anasta10"]
[Black "PolinaYanch"]
[Result "1-0"]
[WhiteElo "2550"]
[BlackElo "1713"]
[TimeControl "180+1"]
[EndTime "8:24:24 PST"]
[Termination "anasta10 won by resignation"]

1. Nf3 {[%clk 0:03:00.9]} 1... d5 {[%clk 0:02:59.6]} 2. c4 {[%clk 0:03:01]} 2...
c6 {[%clk 0:02:57.2]} 3. g3 {[%clk 0:03:00.3]} 3... e6 {[%clk 0:02:56.3]} 4. Bg2
{[%clk 0:03:00.4]} 4... Nf6 {[%clk 0:02:50.8]} 5. O-O {[%clk 0:03:00.2]} 5...
dxc4 {[%clk 0:02:51.1]} 6. Ne5 {[%clk 0:02:59.7]} 6... Be7 {[%clk 0:02:44.1]} 7.
Nxc4 {[%clk 0:02:58.2]} 7... O-O {[%clk 0:02:43.7]} 8. d3 {[%clk 0:02:58.9]}
8... b5 {[%clk 0:02:37.9]} 9. Ne5 {[%clk 0:02:57.7]} 9... Bb7 {[%clk 0:02:37.5]}
10. Nc3 {[%clk 0:02:58.2]} 10... Qc7 {[%clk 0:02:24.5]} 11. d4 {[%clk
0:02:38.2]} 11... Nbd7 {[%clk 0:02:20.3]} 12. Bf4 {[%clk 0:02:32.3]} 12... Bd6
{[%clk 0:02:18.5]} 13. Nxd7 {[%clk 0:02:30.4]} 13... Qxd7 {[%clk 0:02:04.5]} 14.
Bxd6 {[%clk 0:02:30.2]} 14... Qxd6 {[%clk 0:02:04.7]} 15. Nxb5 {[%clk
0:02:29.9]} 15... cxb5 {[%clk 0:02:00.4]} 16. Bxb7 {[%clk 0:02:28.8]} 16... Rad8
{[%clk 0:02:01]} 17. e3 {[%clk 0:02:28.5]} 17... Nd5 {[%clk 0:02:00.5]} 18. Bxd5
{[%clk 0:02:27.9]} 18... Qxd5 {[%clk 0:02:00.6]} 19. Qb3 {[%clk 0:02:26.4]}
19... e5 {[%clk 0:01:54.5]} 20. Qxd5 {[%clk 0:02:23.6]} 20... Rxd5 {[%clk
0:01:54.3]} 21. dxe5 {[%clk 0:02:24.3]} 21... Rxe5 {[%clk 0:01:54.5]} 22. Rfd1
{[%clk 0:02:21.1]} 22... f5 {[%clk 0:01:34.9]} 23. Rac1 {[%clk 0:02:19.1]} 23...
a5 {[%clk 0:01:05.4]} 24. Rd7 {[%clk 0:02:12.7]} 24... Rf7 {[%clk 0:01:05.2]}
25. Rc8+ {[%clk 0:02:12.1]} 25... Rf8 {[%clk 0:01:05.3]} 26. Rcc7 {[%clk
0:02:12.7]} 1-0